[Event "Titled Tuesday Blitz May 23 Late 2023"]
[White "cryptoguru02"]
[Black "olga-belka"]
[WhiteElo "2573"]
[BlackElo "2252"]
[Result "1/2-1/2"]
[Round "01"]
[TimeControl "180+2"]
[Date "2023.05.23"]
[WhiteClock "0:00:07"]
[BlackClock "0:00:02"]

1. d4 {[%clk 0:03:00]}  Nf6 {[%clk 0:02:58]} 2. c4 {[%clk 0:03:00]}  g6 {[%clk 0:02:58]} 3. Nc3 {[%clk 0:02:58]}  d5 {[%clk 0:02:57]} 4. Bf4 {[%clk 0:02:57]}  Bg7 {[%clk 0:02:57]} 5. e3 {[%clk 0:02:57]}  O-O {[%clk 0:02:55]} 6. Rc1 {[%clk 0:02:57]}  c5 {[%clk 0:02:53]} 7. dxc5 {[%clk 0:02:57]}  Qa5 {[%clk 0:02:52]} 8. Nf3 {[%clk 0:02:52]}  Ne4 {[%clk 0:02:50]} 9. cxd5 {[%clk 0:02:46]}  Nxc3 {[%clk 0:02:43]} 10. Qd2 {[%clk 0:02:40]}  Qxc5 {[%clk 0:02:31]} 11. bxc3 {[%clk 0:02:38]}  Rd8 {[%clk 0:02:16]} 12. e4 {[%clk 0:02:30]}  Nd7 {[%clk 0:01:58]} 13. Be3 {[%clk 0:02:21]}  Qa3 {[%clk 0:01:54]} 14. c4 {[%clk 0:02:11]}  b6 {[%clk 0:01:42]} 15. Bd3 {[%clk 0:01:36]}  Ba6 {[%clk 0:01:31]} 16. O-O {[%clk 0:01:33]}  Rac8 {[%clk 0:01:28]} 17. Bd4 {[%clk 0:00:56]}  Bxd4 {[%clk 0:01:02]} 18. Nxd4 {[%clk 0:00:57]}  Ne5 {[%clk 0:01:02]} 19. Rfd1 {[%clk 0:00:29]}  e6 {[%clk 0:00:35]} 20. Bf1 {[%clk 0:00:17]}  exd5 {[%clk 0:00:26]} 21. cxd5 {[%clk 0:00:17]}  Bxf1 {[%clk 0:00:20]} 22. Kxf1 {[%clk 0:00:18]}  Nc4 {[%clk 0:00:17]} 23. Qd3 {[%clk 0:00:15]}  Qxd3+ {[%clk 0:00:13]} 24. Rxd3 {[%clk 0:00:16]}  Nd2+ {[%clk 0:00:12]} 25. Rxd2 {[%clk 0:00:16]}  Rxc1+ {[%clk 0:00:12]} 26. Ke2 {[%clk 0:00:17]}  Rdc8 {[%clk 0:00:11]} 27. Nc6 {[%clk 0:00:17]}  Kf8 {[%clk 0:00:10]} 28. h4 {[%clk 0:00:13]}  h5 {[%clk 0:00:09]} 29. g3 {[%clk 0:00:11]}  R8xc6 {[%clk 0:00:08]} 30. dxc6 {[%clk 0:00:11]}  Rxc6 {[%clk 0:00:09]} 31. Ke3 {[%clk 0:00:11]}  Ke7 {[%clk 0:00:09]} 32. f4 {[%clk 0:00:11]}  Rc3+ {[%clk 0:00:08]} 33. Kf2 {[%clk 0:00:10]}  Rc4 {[%clk 0:00:07]} 34. e5 {[%clk 0:00:10]}  a5 {[%clk 0:00:06]} 35. Rb2 {[%clk 0:00:09]}  Rc6 {[%clk 0:00:04]} 36. Ke3 {[%clk 0:00:09]}  Rc3+ {[%clk 0:00:04]} 37. Kd4 {[%clk 0:00:08]}  Rxg3 {[%clk 0:00:04]} 38. Rxb6 {[%clk 0:00:08]}  Ra3 {[%clk 0:00:04]} 39. Rb7+ {[%clk 0:00:07]}  Ke6 {[%clk 0:00:03]} 40. Rb6+ {[%clk 0:00:07]}  Ke7 {[%clk 0:00:03]} 41. Rb2 {[%clk 0:00:07]}  Ra4+ {[%clk 0:00:03]} 42. Kd5 {[%clk 0:00:07]}  Rxf4 {[%clk 0:00:03]} 43. Rb7+ {[%clk 0:00:07]}  Ke8 {[%clk 0:00:03]} 44. Ra7 {[%clk 0:00:05]}  Rxh4 {[%clk 0:00:02]} 45. Rxa5 {[%clk 0:00:04]}  Rh2 {[%clk 0:00:02]} 46. a4 {[%clk 0:00:02]}  Rd2+ {[%clk 0:00:02]} 47. Ke4 {[%clk 0:00:03]}  h4 {[%clk 0:00:02]} 48. Kf3 {[%clk 0:00:03]}  h3 {[%clk 0:00:02]} 49. Ra8+ {[%clk 0:00:03]}  Ke7 {[%clk 0:00:02]} 50. Rh8 {[%clk 0:00:04]}  h2 {[%clk 0:00:02]} 51. Kg3 {[%clk 0:00:04]}  Kd7 {[%clk 0:00:02]} 52. a5 {[%clk 0:00:03]}  Kc6 {[%clk 0:00:02]} 53. Rxh2 {[%clk 0:00:02]}  Rxh2 {[%clk 0:00:01]} 54. Kxh2 {[%clk 0:00:03]}  Kb5 {[%clk 0:00:01]} 55. Kg3 {[%clk 0:00:03]}  Kxa5 {[%clk 0:00:02]} 56. Kf4 {[%clk 0:00:04]}  Kb5 {[%clk 0:00:02]} 57. e6 {[%clk 0:00:05]}  fxe6 {[%clk 0:00:02]} 58. Ke5 {[%clk 0:00:05]}  Kc6 {[%clk 0:00:02]} 59. Kxe6 {[%clk 0:00:06]}  g5 {[%clk 0:00:02]} 60. Kf5 {[%clk 0:00:06]}  Kd5 {[%clk 0:00:02]} 61. Kxg5 {[%clk 0:00:07]} 1/2-1/2


[Site "https://www.chess.com"]

[Event "Titled Tuesday Blitz May 23 Late 2023"]
[White "Erzhanov, Arman"]
[Black "Djabri,Massinas"]
[WhiteFideId "4138821"]
[BlackFideId "7905726"]
[WhiteElo "2138"]
[BlackElo "2194"]
[Result "0-1"]
[Round "01"]
[TimeControl "180+2"]
[Date "2023.05.23"]
[WhiteClock "0:00:29"]
[BlackClock "0:01:08"]

1. e4 {[%clk 0:03:00]}  c5 {[%clk 0:02:59]} 2. Nf3 {[%clk 0:03:00]}  d6 {[%clk 0:02:59]} 3. Bb5+ {[%clk 0:03:00]}  Bd7 {[%clk 0:02:57]} 4. Bxd7+ {[%clk 0:02:57]}  Qxd7 {[%clk 0:02:58]} 5. O-O {[%clk 0:02:57]}  Nc6 {[%clk 0:02:57]} 6. c3 {[%clk 0:02:56]}  Nf6 {[%clk 0:02:58]} 7. Re1 {[%clk 0:02:56]}  e6 {[%clk 0:02:58]} 8. d4 {[%clk 0:02:57]}  cxd4 {[%clk 0:02:58]} 9. cxd4 {[%clk 0:02:58]}  d5 {[%clk 0:02:59]} 10. e5 {[%clk 0:02:59]}  Ne4 {[%clk 0:03:00]} 11. Nbd2 {[%clk 0:03:00]}  Nxd2 {[%clk 0:02:58]} 12. Bxd2 {[%clk 0:03:00]}  Bb4 {[%clk 0:02:58]} 13. Rc1 {[%clk 0:03:01]}  Bxd2 {[%clk 0:02:53]} 14. Qxd2 {[%clk 0:03:02]}  O-O {[%clk 0:02:53]} 15. Rc3 {[%clk 0:03:00]}  Qe7 {[%clk 0:02:32]} 16. a3 {[%clk 0:02:54]}  h6 {[%clk 0:02:27]} 17. b4 {[%clk 0:02:36]}  a6 {[%clk 0:02:20]} 18. h3 {[%clk 0:02:31]}  Rac8 {[%clk 0:02:18]} 19. Rec1 {[%clk 0:02:30]}  Na7 {[%clk 0:02:16]} 20. Rc5 {[%clk 0:02:25]}  b6 {[%clk 0:02:06]} 21. Rxc8 {[%clk 0:02:21]}  Rxc8 {[%clk 0:02:07]} 22. Rxc8+ {[%clk 0:02:21]}  Nxc8 {[%clk 0:02:08]} 23. Qc3 {[%clk 0:02:15]}  Qd7 {[%clk 0:02:06]} 24. Kf1 {[%clk 0:02:13]}  b5 {[%clk 0:02:02]} 25. Qc5 {[%clk 0:02:06]}  Qb7 {[%clk 0:01:58]} 26. Nd2 {[%clk 0:01:30]}  Nb6 {[%clk 0:01:57]} 27. Nb3 {[%clk 0:01:29]}  Nc4 {[%clk 0:01:43]} 28. Na5 {[%clk 0:01:27]}  Qd7 {[%clk 0:01:25]} 29. Nxc4 {[%clk 0:01:14]}  bxc4 {[%clk 0:01:16]} 30. Qa5 {[%clk 0:01:05]}  Qb5 {[%clk 0:01:11]} 31. Qd8+ {[%clk 0:00:53]}  Kh7 {[%clk 0:01:10]} 32. Qc7 {[%clk 0:00:40]}  c3+ {[%clk 0:01:08]} 33. Ke1 {[%clk 0:00:36]}  Qd3 {[%clk 0:01:08]} 34. Qxf7 {[%clk 0:00:28]}  Qd2+ {[%clk 0:01:07]} 35. Kf1 {[%clk 0:00:29]}  Qd1# {[%clk 0:01:08]} 0-1


[Site "https://www.chess.com"]

[Event "Titled Tuesday Blitz May 23 Late 2023"]
[White "Chyngyz, Sultai"]
[Black "Mortazavi, Ali"]
[WhiteFideId "13803158"]
[BlackFideId "401323"]
[WhiteElo "1408"]
[BlackElo "2339"]
[Result "0-1"]
[Round "01"]
[TimeControl "180+2"]
[Date "2023.05.23"]
[WhiteClock "0:01:57"]
[BlackClock "0:01:31"]

1. e4 {[%clk 0:03:00]}  c6 {[%clk 0:03:00]} 2. Nf3 {[%clk 0:02:58]}  d5 {[%clk 0:03:00]} 3. Nc3 {[%clk 0:02:58]}  dxe4 {[%clk 0:03:00]} 4. Nxe4 {[%clk 0:02:59]}  Nf6 {[%clk 0:03:00]} 5. Qe2 {[%clk 0:02:55]}  Be6 {[%clk 0:03:01]} 6. d3 {[%clk 0:02:55]}  Qc7 {[%clk 0:03:00]} 7. g3 {[%clk 0:02:51]}  Nbd7 {[%clk 0:02:52]} 8. Bg2 {[%clk 0:02:50]}  g6 {[%clk 0:02:34]} 9. O-O {[%clk 0:02:48]}  Nxe4 {[%clk 0:02:32]} 10. dxe4 {[%clk 0:02:46]}  Bg7 {[%clk 0:02:32]} 11. c3 {[%clk 0:02:44]}  Ne5 {[%clk 0:02:27]} 12. Nxe5 {[%clk 0:02:40]}  Qxe5 {[%clk 0:02:20]} 13. f4 {[%clk 0:02:34]}  Qc5+ {[%clk 0:02:15]} 14. Be3 {[%clk 0:02:30]}  Qc4 {[%clk 0:02:15]} 15. Qf2 {[%clk 0:02:30]}  Qa6 {[%clk 0:02:05]} 16. Rfe1 {[%clk 0:02:24]}  O-O {[%clk 0:02:00]} 17. f5 {[%clk 0:02:22]}  Bc4 {[%clk 0:02:00]} 18. Bc5 {[%clk 0:02:16]}  Rfe8 {[%clk 0:01:57]} 19. e5 {[%clk 0:02:12]}  gxf5 {[%clk 0:01:48]} 20. Qxf5 {[%clk 0:02:11]}  Qb5 {[%clk 0:01:42]} 21. b4 {[%clk 0:02:03]}  Bd3 {[%clk 0:01:32]} 22. Qf6 {[%clk 0:01:57]}  exf6 {[%clk 0:01:31]} 0-1


[Site "https://www.chess.com"]

[Event "Titled Tuesday Blitz May 23 Late 2023"]
[White "Ibadov, Dashgyn"]
[Black "Thiel, Thomas"]
[WhiteFideId "24107514"]
[BlackFideId "4615964"]
[WhiteElo "2208"]
[BlackElo "2229"]
[Result "1-0"]
[Round "01"]
[TimeControl "180+2"]
[Date "2023.05.23"]
[WhiteClock "0:00:47"]
[BlackClock "0:01:13"]

1. e4 {[%clk 0:02:59]}  d5 {[%clk 0:02:57]} 2. exd5 {[%clk 0:02:59]}  Nf6 {[%clk 0:02:55]} 3. d4 {[%clk 0:02:56]}  Nxd5 {[%clk 0:02:50]} 4. c4 {[%clk 0:02:56]}  Nb6 {[%clk 0:02:48]} 5. c5 {[%clk 0:02:56]}  Nd5 {[%clk 0:02:44]} 6. Nc3 {[%clk 0:02:56]}  g6 {[%clk 0:02:43]} 7. Bc4 {[%clk 0:02:55]}  Nxc3 {[%clk 0:02:42]} 8. bxc3 {[%clk 0:02:54]}  Bg7 {[%clk 0:02:40]} 9. Nf3 {[%clk 0:02:52]}  O-O {[%clk 0:02:40]} 10. O-O {[%clk 0:02:52]}  Nc6 {[%clk 0:02:39]} 11. Bg5 {[%clk 0:02:46]}  Na5 {[%clk 0:02:36]} 12. Bd3 {[%clk 0:02:37]}  b6 {[%clk 0:02:35]} 13. cxb6 {[%clk 0:02:35]}  axb6 {[%clk 0:02:34]} 14. Re1 {[%clk 0:02:36]}  Re8 {[%clk 0:02:31]} 15. h4 {[%clk 0:01:41]}  Bg4 {[%clk 0:02:28]} 16. Be4 {[%clk 0:01:41]}  Rc8 {[%clk 0:02:24]} 17. Qc2 {[%clk 0:01:32]}  c5 {[%clk 0:02:21]} 18. Ne5 {[%clk 0:01:28]}  Bxe5 {[%clk 0:02:08]} 19. dxe5 {[%clk 0:01:27]}  Nc4 {[%clk 0:02:03]} 20. f3 {[%clk 0:01:24]}  Be6 {[%clk 0:02:01]} 21. Rad1 {[%clk 0:01:15]}  Qc7 {[%clk 0:02:01]} 22. f4 {[%clk 0:01:08]}  Bg4 {[%clk 0:01:48]} 23. Rd3 {[%clk 0:00:56]}  Rcd8 {[%clk 0:01:37]} 24. Rg3 {[%clk 0:00:55]}  Rd2 {[%clk 0:01:22]} 25. Qa4 {[%clk 0:00:47]}  Bd7 {[%clk 0:01:13]} 26. Qxc4 {[%clk 0:00:47]} 1-0


[Site "https://www.chess.com"]

[Event "Titled Tuesday Blitz May 23 Late 2023"]
[White "Almedina Ortiz, Edgardo J."]
[Black "Danielyan, Vahe"]
[WhiteFideId "3100197"]
[BlackFideId "13304828"]
[WhiteElo "2217"]
[BlackElo "2423"]
[Result "0-1"]
[Round "01"]
[TimeControl "180+2"]
[Date "2023.05.23"]
[WhiteClock "0:00:00"]
[BlackClock "0:00:32"]

1. d4 {[%clk 0:03:00]}  Nf6 {[%clk 0:02:51]} 2. c4 {[%clk 0:03:00]}  g6 {[%clk 0:02:51]} 3. Nc3 {[%clk 0:03:00]}  d5 {[%clk 0:02:51]} 4. Nf3 {[%clk 0:03:00]}  Bg7 {[%clk 0:02:50]} 5. Qb3 {[%clk 0:03:00]}  dxc4 {[%clk 0:02:50]} 6. Qxc4 {[%clk 0:03:01]}  O-O {[%clk 0:02:46]} 7. e4 {[%clk 0:03:01]}  Nbd7 {[%clk 0:02:45]} 8. Be2 {[%clk 0:03:00]}  Nb6 {[%clk 0:02:45]} 9. Qb3 {[%clk 0:02:59]}  Bg4 {[%clk 0:02:45]} 10. Be3 {[%clk 0:02:58]}  a5 {[%clk 0:02:34]} 11. a4 {[%clk 0:02:52]}  h5 {[%clk 0:02:19]} 12. h3 {[%clk 0:02:47]}  Bxf3 {[%clk 0:02:15]} 13. Bxf3 {[%clk 0:02:47]}  e6 {[%clk 0:01:32]} 14. O-O {[%clk 0:02:44]}  Qd7 {[%clk 0:01:32]} 15. Rfd1 {[%clk 0:02:36]}  Rfd8 {[%clk 0:01:31]} 16. d5 {[%clk 0:01:40]}  exd5 {[%clk 0:01:30]} 17. exd5 {[%clk 0:01:30]}  Nc8 {[%clk 0:01:18]} 18. Qxb7 {[%clk 0:01:24]}  Nd6 {[%clk 0:01:18]} 19. Qc6 {[%clk 0:01:19]}  Qe7 {[%clk 0:01:18]} 20. Nb5 {[%clk 0:01:13]}  Rac8 {[%clk 0:01:16]} 21. Bc5 {[%clk 0:01:00]}  Nfe4 {[%clk 0:01:05]} 22. Re1 {[%clk 0:00:40]}  f5 {[%clk 0:01:03]} 23. Re2 {[%clk 0:00:34]}  Kh7 {[%clk 0:00:58]} 24. Rae1 {[%clk 0:00:32]}  Qf6 {[%clk 0:00:56]} 25. Bd4 {[%clk 0:00:30]}  Qf7 {[%clk 0:00:48]} 26. Bxg7 {[%clk 0:00:30]}  Qxg7 {[%clk 0:00:49]} 27. b3 {[%clk 0:00:22]}  h4 {[%clk 0:00:44]} 28. Bxe4 {[%clk 0:00:18]}  Nxe4 {[%clk 0:00:43]} 29. Na3 {[%clk 0:00:17]}  Rd6 {[%clk 0:00:43]} 30. Qc2 {[%clk 0:00:16]}  Rcd8 {[%clk 0:00:42]} 31. Nc4 {[%clk 0:00:12]}  Rxd5 {[%clk 0:00:42]} 32. Ne3 {[%clk 0:00:08]}  Rc5 {[%clk 0:00:41]} 33. Qb2 {[%clk 0:00:06]}  Nc3 {[%clk 0:00:38]} 34. Rc2 {[%clk 0:00:05]}  Rd3 {[%clk 0:00:38]} 35. Nc4 {[%clk 0:00:00]}  Rcd5 {[%clk 0:00:32]} 0-1


[Site "https://www.chess.com"]

[Event "Titled Tuesday Blitz May 23 Late 2023"]
[White "Kovacevic, Radmila"]
[Black "Martinez Reyes, Pedro Ramon"]
[WhiteFideId "933171"]
[BlackFideId "3901807"]
[WhiteElo "2194"]
[BlackElo "2340"]
[Result "0-1"]
[Round "01"]
[TimeControl "180+2"]
[Date "2023.05.23"]
[WhiteClock "0:00:06"]
[BlackClock "0:00:47"]

1. e4 {[%clk 0:02:57]}  c5 {[%clk 0:02:57]} 2. Nf3 {[%clk 0:02:57]}  Nc6 {[%clk 0:02:56]} 3. d4 {[%clk 0:02:55]}  cxd4 {[%clk 0:02:57]} 4. c3 {[%clk 0:02:55]}  d5 {[%clk 0:02:48]} 5. exd5 {[%clk 0:02:54]}  Qxd5 {[%clk 0:02:49]} 6. cxd4 {[%clk 0:02:54]}  e5 {[%clk 0:02:50]} 7. Nc3 {[%clk 0:02:52]}  Bb4 {[%clk 0:02:50]} 8. Bd2 {[%clk 0:02:52]}  Bxc3 {[%clk 0:02:50]} 9. bxc3 {[%clk 0:02:53]}  exd4 {[%clk 0:02:49]} 10. cxd4 {[%clk 0:02:48]}  Nf6 {[%clk 0:02:47]} 11. Qe2+ {[%clk 0:02:29]}  Be6 {[%clk 0:02:44]} 12. Qb5 {[%clk 0:02:26]}  O-O {[%clk 0:02:39]} 13. Be3 {[%clk 0:02:18]}  Rfe8 {[%clk 0:01:56]} 14. Rc1 {[%clk 0:02:06]}  Qxb5 {[%clk 0:01:54]} 15. Bxb5 {[%clk 0:02:05]}  Bxa2 {[%clk 0:01:53]} 16. Rxc6 {[%clk 0:01:57]}  bxc6 {[%clk 0:01:49]} 17. Bxc6 {[%clk 0:01:58]}  Rab8 {[%clk 0:01:49]} 18. Bxe8 {[%clk 0:01:56]}  Rb1+ {[%clk 0:01:49]} 19. Kd2 {[%clk 0:01:45]}  Rxh1 {[%clk 0:01:46]} 20. Bc6 {[%clk 0:01:44]}  Bd5 {[%clk 0:01:46]} 21. Ba4 {[%clk 0:01:28]}  Ne4+ {[%clk 0:01:45]} 22. Kd3 {[%clk 0:01:28]}  Nd6 {[%clk 0:01:45]} 23. Bf4 {[%clk 0:01:25]}  Ra1 {[%clk 0:01:42]} 24. Bd7 {[%clk 0:01:12]}  Ra3+ {[%clk 0:01:40]} 25. Kc2 {[%clk 0:01:10]}  Ne4 {[%clk 0:01:32]} 26. Be3 {[%clk 0:01:06]}  Nxf2 {[%clk 0:01:29]} 27. Bc1 {[%clk 0:00:49]}  Ra2+ {[%clk 0:01:24]} 28. Kb1 {[%clk 0:00:49]}  Re2 {[%clk 0:01:09]} 29. Bb5 {[%clk 0:00:40]}  Be4+ {[%clk 0:01:03]} 30. Ka1 {[%clk 0:00:39]}  Nd3 {[%clk 0:01:04]} 31. d5 {[%clk 0:00:30]}  Nxc1 {[%clk 0:01:02]} 32. Bxe2 {[%clk 0:00:29]}  Nxe2 {[%clk 0:01:03]} 33. d6 {[%clk 0:00:29]}  Kf8 {[%clk 0:00:59]} 34. Ne5 {[%clk 0:00:26]}  Ke8 {[%clk 0:00:56]} 35. g3 {[%clk 0:00:22]}  Bf5 {[%clk 0:00:55]} 36. Kb2 {[%clk 0:00:20]}  f6 {[%clk 0:00:54]} 37. Nc4 {[%clk 0:00:18]}  Kd7 {[%clk 0:00:53]} 38. Ka3 {[%clk 0:00:17]}  Be6 {[%clk 0:00:53]} 39. Ne3 {[%clk 0:00:13]}  Kxd6 {[%clk 0:00:54]} 40. Ka4 {[%clk 0:00:13]}  Nd4 {[%clk 0:00:54]} 41. Ka5 {[%clk 0:00:12]}  Ke5 {[%clk 0:00:54]} 42. Ng2 {[%clk 0:00:10]}  g5 {[%clk 0:00:54]} 43. Ne1 {[%clk 0:00:10]}  Ke4 {[%clk 0:00:52]} 44. Ka6 {[%clk 0:00:10]}  Ke3 {[%clk 0:00:52]} 45. Kxa7 {[%clk 0:00:10]}  Kf2 {[%clk 0:00:52]} 46. Nd3+ {[%clk 0:00:10]}  Kg2 {[%clk 0:00:52]} 47. Nc5 {[%clk 0:00:10]}  Kxh2 {[%clk 0:00:52]} 48. Kb6 {[%clk 0:00:08]}  Kxg3 {[%clk 0:00:52]} 49. Kc7 {[%clk 0:00:09]}  h5 {[%clk 0:00:53]} 50. Kd6 {[%clk 0:00:09]}  Ba2 {[%clk 0:00:52]} 51. Ke7 {[%clk 0:00:09]}  h4 {[%clk 0:00:53]} 52. Kxf6 {[%clk 0:00:09]}  g4 {[%clk 0:00:53]} 53. Ne4+ {[%clk 0:00:10]}  Kg2 {[%clk 0:00:51]} 54. Kg5 {[%clk 0:00:09]}  h3 {[%clk 0:00:52]} 55. Kxg4 {[%clk 0:00:09]}  h2 {[%clk 0:00:52]} 56. Ng3 {[%clk 0:00:10]}  Be6+ {[%clk 0:00:46]} 57. Kh4 {[%clk 0:00:10]}  Nf3+ {[%clk 0:00:46]} 58. Kh5 {[%clk 0:00:06]}  Kxg3 {[%clk 0:00:47]} 0-1


[Site "https://www.chess.com"]

[Event "Titled Tuesday Blitz May 23 Late 2023"]
[White "Melian, Juan Sebastian"]
[Black "Quirke, Jeffrey"]
[WhiteFideId "3706575"]
[BlackFideId "2013029"]
[WhiteElo "2092"]
[BlackElo "2210"]
[Result "1/2-1/2"]
[Round "01"]
[TimeControl "180+2"]
[Date "2023.05.23"]
[WhiteClock "0:00:06"]
[BlackClock "0:00:09"]

1. e4 {[%clk 0:03:00]}  Nf6 {[%clk 0:02:59]} 2. Nc3 {[%clk 0:02:59]}  d5 {[%clk 0:02:59]} 3. exd5 {[%clk 0:02:52]}  Nxd5 {[%clk 0:02:58]} 4. Nf3 {[%clk 0:02:53]}  Bg4 {[%clk 0:02:51]} 5. Bc4 {[%clk 0:02:49]}  c6 {[%clk 0:02:46]} 6. h3 {[%clk 0:02:47]}  Bh5 {[%clk 0:02:45]} 7. d4 {[%clk 0:02:22]}  e6 {[%clk 0:02:42]} 8. Bd2 {[%clk 0:02:20]}  Nd7 {[%clk 0:02:40]} 9. Qe2 {[%clk 0:02:19]}  Be7 {[%clk 0:02:40]} 10. a3 {[%clk 0:02:10]}  O-O {[%clk 0:02:38]} 11. Ne4 {[%clk 0:01:59]}  Bxf3 {[%clk 0:02:19]} 12. Qxf3 {[%clk 0:01:57]}  N7f6 {[%clk 0:02:19]} 13. Ng3 {[%clk 0:01:54]}  b5 {[%clk 0:02:16]} 14. Bd3 {[%clk 0:01:54]}  a6 {[%clk 0:02:07]} 15. O-O {[%clk 0:01:52]}  Qc7 {[%clk 0:02:01]} 16. h4 {[%clk 0:01:48]}  c5 {[%clk 0:01:58]} 17. dxc5 {[%clk 0:01:40]}  Bxc5 {[%clk 0:01:57]} 18. h5 {[%clk 0:01:36]}  h6 {[%clk 0:01:52]} 19. Rae1 {[%clk 0:01:30]}  Rfe8 {[%clk 0:01:47]} 20. Ne4 {[%clk 0:01:27]}  Be7 {[%clk 0:01:42]} 21. Nxf6+ {[%clk 0:00:54]}  Nxf6 {[%clk 0:01:40]} 22. Bc3 {[%clk 0:00:54]}  Rad8 {[%clk 0:01:32]} 23. Bxf6 {[%clk 0:00:26]}  Bxf6 {[%clk 0:01:31]} 24. Qe4 {[%clk 0:00:18]}  Rd4 {[%clk 0:01:14]} 25. Qh7+ {[%clk 0:00:17]}  Kf8 {[%clk 0:01:15]} 26. Re2 {[%clk 0:00:12]}  Rh4 {[%clk 0:01:11]} 27. g3 {[%clk 0:00:11]}  Rxh5 {[%clk 0:01:09]} 28. Rfe1 {[%clk 0:00:11]}  Rg5 {[%clk 0:00:47]} 29. a4 {[%clk 0:00:07]}  Rxg3+ {[%clk 0:00:19]} 30. fxg3 {[%clk 0:00:08]}  Qxg3+ {[%clk 0:00:19]} 31. Kh1 {[%clk 0:00:06]}  Qh3+ {[%clk 0:00:10]} 32. Rh2 {[%clk 0:00:04]}  Qf3+ {[%clk 0:00:10]} 33. Rg2 {[%clk 0:00:04]}  Qh3+ {[%clk 0:00:09]} 34. Rh2 {[%clk 0:00:05]}  Qf3+ {[%clk 0:00:09]} 35. Rg2 {[%clk 0:00:05]}  Qh3+ {[%clk 0:00:09]} 36. Rh2 {[%clk 0:00:06]} 1/2-1/2


[Site "https://www.chess.com"]

[Event "Titled Tuesday Blitz May 23 Late 2023"]
[White "Cardozo Munar, Carlos Eduardo"]
[Black "Khandelwal, Ankush"]
[WhiteFideId "4409477"]
[BlackFideId "413470"]
[WhiteElo "2067"]
[BlackElo "2263"]
[Result "0-1"]
[Round "01"]
[TimeControl "180+2"]
[Date "2023.05.23"]
[WhiteClock "0:00:22"]
[BlackClock "0:00:21"]

1. e4 {[%clk 0:03:00]}  c5 {[%clk 0:02:57]} 2. Nf3 {[%clk 0:02:58]}  d6 {[%clk 0:02:56]} 3. Nc3 {[%clk 0:02:57]}  Nf6 {[%clk 0:02:48]} 4. Bc4 {[%clk 0:02:57]}  a6 {[%clk 0:02:37]} 5. a4 {[%clk 0:02:57]}  Nc6 {[%clk 0:02:29]} 6. O-O {[%clk 0:02:56]}  g6 {[%clk 0:02:20]} 7. Re1 {[%clk 0:02:56]}  Bg7 {[%clk 0:02:19]} 8. Nd5 {[%clk 0:02:56]}  O-O {[%clk 0:02:17]} 9. h3 {[%clk 0:02:56]}  Rb8 {[%clk 0:02:10]} 10. c3 {[%clk 0:02:43]}  b5 {[%clk 0:02:10]} 11. Nxf6+ {[%clk 0:02:42]}  Bxf6 {[%clk 0:02:09]} 12. Bd5 {[%clk 0:02:43]}  Bb7 {[%clk 0:02:03]} 13. axb5 {[%clk 0:02:42]}  axb5 {[%clk 0:02:02]} 14. d4 {[%clk 0:02:38]}  c4 {[%clk 0:01:35]} 15. e5 {[%clk 0:02:26]}  dxe5 {[%clk 0:01:32]} 16. dxe5 {[%clk 0:02:26]}  Nxe5 {[%clk 0:01:27]} 17. Bxb7 {[%clk 0:02:09]}  Qxd1 {[%clk 0:01:23]} 18. Rxd1 {[%clk 0:02:10]}  Rxb7 {[%clk 0:01:22]} 19. Nxe5 {[%clk 0:02:10]}  Bxe5 {[%clk 0:01:23]} 20. Bh6 {[%clk 0:02:05]}  Rfb8 {[%clk 0:01:19]} 21. Rd5 {[%clk 0:02:01]}  f6 {[%clk 0:01:17]} 22. Rad1 {[%clk 0:01:37]}  g5 {[%clk 0:01:03]} 23. Rd8+ {[%clk 0:01:33]}  Kf7 {[%clk 0:01:03]} 24. h4 {[%clk 0:01:26]}  gxh4 {[%clk 0:01:02]} 25. Kf1 {[%clk 0:01:05]}  Rxd8 {[%clk 0:01:01]} 26. Rxd8 {[%clk 0:01:04]}  b4 {[%clk 0:01:02]} 27. Rc8 {[%clk 0:01:00]}  bxc3 {[%clk 0:00:50]} 28. bxc3 {[%clk 0:01:00]}  Rc7 {[%clk 0:00:44]} 29. Rh8 {[%clk 0:00:51]}  f5 {[%clk 0:00:21]} 30. Bd2 {[%clk 0:00:48]}  Bxh8 {[%clk 0:00:21]} 31. Ke2 {[%clk 0:00:43]}  Rd7 {[%clk 0:00:20]} 32. Be1 {[%clk 0:00:42]}  Rd3 {[%clk 0:00:20]} 33. f3 {[%clk 0:00:42]}  Bxc3 {[%clk 0:00:20]} 34. Bxh4 {[%clk 0:00:42]}  Bf6 {[%clk 0:00:20]} 35. Bf2 {[%clk 0:00:42]}  Ra3 {[%clk 0:00:20]} 36. Bc5 {[%clk 0:00:41]}  Ra2+ {[%clk 0:00:20]} 37. Kf1 {[%clk 0:00:22]}  c3 {[%clk 0:00:21]} 0-1


[Site "https://www.chess.com"]

[Event "Titled Tuesday Blitz May 23 Late 2023"]
[White "gueraumasague"]
[Black "Antonova, Nadezhda"]
[BlackFideId "14700182"]
[WhiteElo "2554"]
[BlackElo "1799"]
[Result "1-0"]
[Round "01"]
[TimeControl "180+2"]
[Date "2023.05.23"]
[WhiteClock "0:00:51"]
[BlackClock "0:00:34"]

1. e4 {[%clk 0:03:00]}  c5 {[%clk 0:02:59]} 2. Nc3 {[%clk 0:03:01]}  Nc6 {[%clk 0:02:59]} 3. Bb5 {[%clk 0:03:01]}  Nd4 {[%clk 0:02:54]} 4. Nf3 {[%clk 0:03:01]}  Nxb5 {[%clk 0:02:53]} 5. Nxb5 {[%clk 0:03:02]}  a6 {[%clk 0:02:54]} 6. Nc3 {[%clk 0:03:00]}  d6 {[%clk 0:02:53]} 7. d4 {[%clk 0:02:56]}  cxd4 {[%clk 0:02:53]} 8. Nxd4 {[%clk 0:02:55]}  Nf6 {[%clk 0:02:53]} 9. O-O {[%clk 0:02:54]}  e5 {[%clk 0:02:51]} 10. Nb3 {[%clk 0:02:46]}  h6 {[%clk 0:02:48]} 11. h3 {[%clk 0:02:33]}  Be7 {[%clk 0:02:48]} 12. Be3 {[%clk 0:02:33]}  O-O {[%clk 0:02:48]} 13. Qd2 {[%clk 0:02:33]}  Be6 {[%clk 0:02:47]} 14. Rfd1 {[%clk 0:02:32]}  Rc8 {[%clk 0:02:45]} 15. a3 {[%clk 0:02:31]}  b5 {[%clk 0:02:45]} 16. Qd3 {[%clk 0:02:24]}  Qc7 {[%clk 0:02:43]} 17. Rac1 {[%clk 0:02:20]}  Qc4 {[%clk 0:02:41]} 18. Qxc4 {[%clk 0:02:14]}  Rxc4 {[%clk 0:02:38]} 19. f3 {[%clk 0:02:14]}  Rfc8 {[%clk 0:02:36]} 20. Bd2 {[%clk 0:02:03]}  d5 {[%clk 0:02:29]} 21. exd5 {[%clk 0:01:57]}  Nxd5 {[%clk 0:02:28]} 22. Na5 {[%clk 0:01:45]}  R4c7 {[%clk 0:02:20]} 23. Nxd5 {[%clk 0:01:38]}  Bxd5 {[%clk 0:02:20]} 24. Bb4 {[%clk 0:01:39]}  Bxb4 {[%clk 0:02:15]} 25. axb4 {[%clk 0:01:39]}  Be6 {[%clk 0:02:07]} 26. c3 {[%clk 0:01:40]}  f6 {[%clk 0:02:03]} 27. Rd6 {[%clk 0:01:40]}  Bf7 {[%clk 0:01:58]} 28. Rcd1 {[%clk 0:01:37]}  Ra7 {[%clk 0:01:53]} 29. Kf2 {[%clk 0:01:36]}  Kh7 {[%clk 0:01:51]} 30. Ke3 {[%clk 0:01:32]}  Rcc7 {[%clk 0:01:49]} 31. Rb6 {[%clk 0:01:32]}  Rc8 {[%clk 0:01:44]} 32. Rdd6 {[%clk 0:01:31]}  Rca8 {[%clk 0:01:44]} 33. Rb7 {[%clk 0:01:28]}  Kg6 {[%clk 0:01:30]} 34. Rdd7 {[%clk 0:01:09]}  Rxb7 {[%clk 0:01:29]} 35. Nxb7 {[%clk 0:01:10]}  Bc4 {[%clk 0:01:08]} 36. h4 {[%clk 0:00:57]}  h5 {[%clk 0:01:07]} 37. Na5 {[%clk 0:00:52]}  Bf7 {[%clk 0:00:57]} 38. Nc6 {[%clk 0:00:52]}  Rc8 {[%clk 0:00:34]} 39. Ne7+ {[%clk 0:00:51]} 1-0


[Site "https://www.chess.com"]